Cogmind - Beta 14 @@@ ROGUE MODE // 2025.01.03 @ 19:43:12 // Winter2022/Polymind Player: Demo Result: Destroyed by S-10 Pest with Light Assault Rifle Performance ------------- Evolutions (0) 0 Regions Visited (3) 600 Robots Destroyed (6) 30 Value Destroyed (245) 245 Prototype IDs (0) 0 Alien Tech Used (0) 0 Bonus (780) 780 TOTAL SCORE: 1255 Bonus ------- Polymind Skill 780 Cogmind --------- Core Integrity 0/250 Matter 100/100 Energy 150/150 System Corruption 0% Temperature Cool (0) Movement Core (200) Ox3 Location -10/Subcaves Parts ------- > --- POWER (1) -------- Subdweller Power Source > --- PROPULSION (1) --- Subdweller Monowheel > --- UTILITY (4) ------ Disposable Heat Sink Subdweller Optics > --- WEAPON (1) ------- Subdweller Laser > --- INVENTORY (2) ---- Terrain Scanner Peak State ------------ > --- POWER ------------ Subdweller Power Source > --- PROPULSION ------- Subdweller Monowheel > --- UTILITY ---------- Disposable Heat Sink Subdweller Optics Scrap Shield > --- WEAPON ----------- Subdweller Laser > --- INVENTORY -------- Terrain Scanner [Rating: 14] Favorites ----------- Power Subdweller Power Source Engine Subdweller Power Source Propulsion Light Treads Treads Light Treads Wheel Subdweller Monowheel Utility Heat Sink Device Heat Sink Protection Scrap Shield Weapon Subdweller Laser Energy Gun Subdweller Laser Ballistic Gun Heavy Assault Rifle Build | -11 -10 -10 -10 ------- Run | Yrd Mat Min Sub Slots Evolved . | . . . . Power . | . . . . Propulsion . | . . . . Utility . | . . . . Weapon . | . . . . Parts Attached . | . . . . Power . | . . . . Engine . | . . . . Core . | . . . . Reactor . | . . . . Propulsion . | . . . . Treads . | . . . . Leg . | . . . . Wheel . | . . . . Hover . | . . . . Flight . | . . . . Utility . | . . . . Device . | . . . . Storage . | . . . . Processor . | . . . . Hackware . | . . . . Protection . | . . . . Artifact . | . . . . Weapon . | . . . . Energy Gun . | . . . . Energy Cannon . | . . . . Ballistic Gun . | . . . . Ballistic Cannon . | . . . . Launcher . | . . . . Special Weapon . | . . . . Impact Weapon . | . . . . Slashing Weapon . | . . . . Piercing Weapon . | . . . . Special Melee Weapon . | . . . . Unidentified Prototypes . | . . . . Parts Lost 5 | . . . 5 Power 1 | . . . 1 Propulsion 1 | . . . 1 Utility 2 | . . . 2 Weapon 1 | . . . 1 Highest Loss Streak 3 | . . . 3 To Critical Strikes . | . . . . Average Slot Usage (%) 68 | . . . 85 Engine 10 | . . . 12 Treads 7 | . . . 8 Wheel 6 | . . . 8 Device 20 | . . . 25 Protection 9 | . . . 11 Energy Gun 9 | . . . 12 Ballistic Gun 3 | . . . 4 Peak Build Rating 14 | . . . 14 Average Rating 9 | . . . 12 On Entrance . | . . . . Naked Turns 295 | . 14 249 32 Heaviest Build 30 | . . . 30 Greatest Support 40 | 3 3 3 40 Greatest Overweight (x) 9 | . . . 9 Average Overweight (x) . | . . . . Largest Inventory Capacity 2 | . . . 2 Average Capacity 1 | . . . 1 Most Carried 1 | . . . 1 Average Carried . | . . . . Final Capacity 2 | . . . 2 Final Carried 1 | . . . 1 Class Distribution -------------------- 46% | Subdweller 30% | Sentry 23% | Cogmind Dominant Class ---------------- Cogmind | -10/Materials Cogmind | -10/Mines Subdweller | -10/Subcaves Resources | -11 -10 -10 -10 ----------- Run | Yrd Mat Min Sub Matter Collected 18 | . . . 18 Remotely . | . . . . Salvage Created 249 | . . . 249 Parts 17 | . . . 17 Haulers Intercepted . | . . . . Recyclers Shooed . | . . . . Parts Field Recycled . | . . . . Retrieved Matter . | . . . . Parts Self-Destructed 2 | . . . 2 Prevented . | . . . . Kills | -11 -10 -10 -10 ------- Run | Yrd Mat Min Sub Combat Hostiles Destroyed 6 | . . . 6 Guns 6 | . . . 6 Classes Destroyed 2 | . . . 2 Sentry 1 | . . . 1 Subdweller 5 | . . . 5 Best Kill Streak 2 | . . . 2 Combat Bots Only 2 | . . . 2 Max Kills in Single Turn 1 | . . . 1 Gunslinging . | . . . . Exploded . | . . . . Melee . | . . . . Uniques/NPCs Destroyed . | . . . . Combat | -11 -10 -10 -10 -------- Run | Yrd Mat Min Sub Hostile Shots Fired 61 | . . 1 60 Missed 9 | . . . 9 Damage Taken 994 | . . 11 983 Core 253 | . . 11 242 Absorbed by Shields . | . . . . Core Remaining (%) 100 | 100 . . . Volleys Fired 30 | . . . 30 Largest 2 | . . . 2 Hottest 79 | . . . 79 Shots Fired 35 | . . . 35 Gun 35 | . . . 35 Cannon . | . . . . Launcher . | . . . . Special . | . . . . Kinetic 16 | . . . 16 Thermal 19 | . . . 19 Explosive . | . . . . Electromagnetic . | . . . . Robot Hit Streak 11 | . . . 11 Robot Miss Streak 1 | . . . 1 Penetration Max . | . . . . Secondary Targets . | . . . . Shots Hit Robots 29 | . . . 29 Core Hits 10 | . . . 10 Critical Kills . | . . . . Critical Parts Destroyed . | . . . . Critical Strikes . | . . . . Melee Attacks . | . . . . Impact . | . . . . Slashing . | . . . . Piercing . | . . . . Sneak Attacks . | . . . . Combat Hostiles . | . . . . Follow-up Attacks . | . . . . Damage Inflicted 516 | . . . 516 Guns 516 | . . . 516 Cannons . | . . . . Explosions . | . . . . Melee . | . . . . Ramming . | . . . . Kinetic 178 | . . . 178 Thermal 338 | . . . 338 Explosive . | . . . . Electromagnetic . | . . . . Impact . | . . . . Slashing . | . . . . Piercing . | . . . . Highest Corruption . | . . . . Average Corruption . | . . . . Corruption Purged . | . . . . Corruption Blocked . | . . . . Overload Shots . | . . . . Overflow Damage . | . . . . Projectiles . | . . . . Explosions . | . . . . Melee . | . . . . Knockbacks . | . . . . Impact . | . . . . Kinetic . | . . . . Secondary . | . . . . Self-Inflicted Damage . | . . . . Shots . | . . . . Rammed . | . . . . Targets Rammed . | . . . . Kicked . | . . . . Crushed . | . . . . Highest Temperature 265 | . . . 265 Average Temperature 88 | . . . 88 Received Heat Transfer 760 | . . 6 754 Siege Activations . | . . . . Robots Corrupted . | . . . . Combat Hostiles . | . . . . Parts Fried . | . . . . Impact Corruptions . | . . . . Robots Melted . | . . . . Combat Hostiles . | . . . . Parts Melted 1 | . . . 1 Heat Transferred 473 | . . . 473 Parts Sabotaged . | . . . . Parts Stolen . | . . . . Parts Stripped . | . . . . Power Chain Reactions . | . . . . Alert | -11 -10 -10 -10 ------- Run | Yrd Mat Min Sub Peak Influence . | . . . . Initial . | . . . . Average . | . . . . Maximum Alert Level . | . . . . Low Security (%) 100 | 100 100 100 . Level 1 . | . . . . Level 2 . | . . . . Level 3 . | . . . . Level 4 . | . . . . Level 5 . | . . . . High Security . | . . . . Max Security . | . . . . Squads Dispatched . | . . . . Investigation . | . . . . Extermination . | . . . . Reinforcement . | . . . . Assault . | . . . . Garrison . | . . . . Intercept . | . . . . Searches Triggered . | . . . . Construction Impeded . | . . . . Haulers Reinforced . | . . . . Active Scanning Responses . | . . . . Cargo Convoy Interrupts . | . . . . Stealth | -11 -10 -10 -10 --------- Run | Yrd Mat Min Sub Distress Signals . | . . . . Communications Jammed . | . . . . Distress Signals . | . . . . Times Spotted 16 | . . 2 14 Peak Tracking Total 2 | . . 2 2 Tactical Retreats . | . . . . Traps | -11 -10 -10 -10 ------- Run | Yrd Mat Min Sub Traps Triggered . | . . . . Indirectly . | . . . . Trap Hack Attempts . | . . . . Triggered . | . . . . Disarmed . | . . . . Reprogrammed . | . . . . Reused . | . . . . Traps Extracted . | . . . . Installed . | . . . . Triggered . | . . . . Machines | -11 -10 -10 -10 ---------- Run | Yrd Mat Min Sub Machines Disabled . | . . . . Max in Single Turn . | . . . . Machines Repaired . | . . . . Machines Dismantled . | . . . . Machines Sabotaged . | . . . . Overloaded Fab Kills . | . . . . Hacking | -11 -10 -10 -10 --------- Run | Yrd Mat Min Sub Machines Accessed . | . . . . Terminals . | . . . . Fabricators . | . . . . Repair Stations . | . . . . Recycling Units . | . . . . Scanalyzers . | . . . . Garrison Access . | . . . . Total Hacks . | . . . . Successful . | . . . . Failed . | . . . . Catastrophic . | . . . . Database Lockouts . | . . . . Manual . | . . . . Terminals . | . . . . Fabricators . | . . . . Repair Stations . | . . . . Recycling Units . | . . . . Scanalyzers . | . . . . Garrison Access . | . . . . Terminal Hacks . | . . . . Fabricator Hacks . | . . . . Repair Station Hacks . | . . . . Recycling Unit Hacks . | . . . . Scanalyzer . | . . . . Garrison Access Hacks . | . . . . Unauthorized Hacks . | . . . . Terminals . | . . . . Fabricators . | . . . . Repair Stations . | . . . . Recycling Units . | . . . . Scanalyzers . | . . . . Garrison Access . | . . . . Data Cores Recovered . | . . . . Used . | . . . . Hacking Detections . | . . . . Full Trace Events . | . . . . Feedback Events . | . . . . Feedback Blocked . | . . . . Robot Schematics Acquired . | . . . . Robots Built . | . . . . Authchips . | . . . . Time . | . . . . Total Robot Build Rating . | . . . . Part Schematics Acquired . | . . . . Parts Built . | . . . . Authchips . | . . . . Time . | . . . . Total Part Build Rating . | . . . . Parts Repaired . | . . . . Time . | . . . . Parts Recycled . | . . . . Recycled Matter . | . . . . Retrieved Matter . | . . . . Retrieved Components . | . . . . Parts Scanalyzed . | . . . . Part Schematics Acquired . | . . . . Parts Damaged . | . . . . Bothacking | -11 -10 -10 -10 ------------ Run | Yrd Mat Min Sub Used RIF Installer . | . . . . Robots Hacked 1 | . . . 1 Non-combat . | . . . . Combat 1 | . . . 1 Robot Hacks Applied 1 | . . . 1 find_shortcuts 1 | . . . 1 Relay Couplers Released . | . . . . Fabnet Peak Effective % . | . . . . Robots Rewired . | . . . . Allies Hacked . | . . . . Hacks Repelled . | . . . . Allies | -11 -10 -10 -10 -------- Run | Yrd Mat Min Sub Total Allies . | . . . . Largest Group . | . . . . Highest-Rated Group . | . . . . Highest-Rated Ally . | . . . . Total Orders . | . . . . Ally Attacks . | . . . . Total Damage . | . . . . Kills . | . . . . Allies Corrupted . | . . . . Allies Melted . | . . . . Intel | -11 -10 -10 -10 ------- Run | Yrd Mat Min Sub Robot Analysis Total 2 | . . . 2 Derelict Logs Recovered . | . . . . Drone Launches . | . . . . Drone Recoveries . | . . . . Exploration | -11 -10 -10 -10 ------------- Run | Yrd Mat Min Sub Turns Passed 1276 | 9 14 249 1004 Spaces Moved 708 | 18 28 48 614 Core 139 | 18 28 48 45 Treads 198 | . . . 198 Legs . | . . . . Wheels 371 | . . . 371 Hover . | . . . . Flight . | . . . . Fastest Speed 50 | 50 50 50 50 Average Speed 126 | 50 50 50 138 Slowest Speed 500 | 50 50 50 500 Overloaded Moves . | . . . . Propulsion Burnouts . | . . . . Robots Hopped . | . . . . Cave-ins Triggered . | . . . . Exploration Rate (%) 15 | 3 11 9 40 Regions Visited 3 Branch Regions 2 Pre-discovered Areas . | . . . . Known Exits Taken . | . . . . Unknown Exits Taken 3 | 1 1 1 . Scrap Searched . | . . . . Spaces Dug . | . . . . Terrain Destroyed . | . . . . Melee . | . . . . Projectile . | . . . . AOE . | . . . . Terrain Rammed . | . . . . Walls Destroyed . | . . . . Machines Disabled . | . . . . Actions | -11 -10 -10 -10 --------- Run | Yrd Mat Min Sub Total 1054 | 17 27 272 738 Wait 319 | . . 225 94 Move 705 | 17 27 47 614 Hop . | . . . . Pick Up . | . . . . Fast Attach . | . . . . Attach . | . . . . Detach . | . . . . Swap . | . . . . Drop . | . . . . Fire 30 | . . . 30 Melee . | . . . . Ram . | . . . . Kick . | . . . . Crush . | . . . . Escape Stasis . | . . . . Rewire . | . . . . Trap . | . . . . Miscellaneous . | . . . . Route ------- -11/Scrapyard -10/Materials -10/Mines -10/Subcaves History --------- Turn | Location | Event 4 | -11/Scrapyard | Discovered new exit (range 14) 10 | -11/Scrapyard | Entered Materials 17 | -10/Materials | Discovered new exit (range 15) 24 | -10/Materials | Entered Mines 271 | -10/Mines | Discovered new exit (range 3) 273 | -10/Mines | Entered Subcaves 445 | -10/Subcaves | A swath of the cavern ceiling suddenly collapsed 639 | -10/Subcaves | Core integrity fell below 50% 667 | -10/Subcaves | Lost 3 parts (1n1u1w) 692 | -10/Subcaves | Core integrity fell below 20% 1277 | -10/Subcaves | Destroyed by S-10 Pest with Light Assault Rifle Last Messages --------------- 00696_ Y-45 Defender destroyed. 00700_ Heat Sink fries itself beyond repair. 00727_ D6-VY3(R) destroyed. 00733_ Subatomizers dissect the Disposable Heat Sink. 00746_ Acquired 18 Protomatter. 00755_ Subatomizers dissect the Disposable Heat Sink. 00858_ Critical hit (Meltdown: +300). 00870_ Q3-29M(R) destroyed. 00884_ WT-OZH(R) destroyed. 00886_ Acquired 21 Protomatter. 01040_ Sub. Optics shoots sparks and powers down. 01140_ Subatomizers dissect the Sub. Power Source. 01193_ Sub. Monowheel shoots sparks and powers down. 01276_ Scrap Shield destroyed. Map ----- +----------------------------------------------------+ | ##"##? ??????????????????????# ##??# | | "#"""? ???????????????????##### ##??# | | ##"""? ??????###???????##### ##### | | "#"#"# ???????# ##?????## ## | | "#""#"#???????#% ##???## | | "# #""###????## ????# ## | | "###""" ##???# #?????# ##### | | #""" " ##?## #?###?# ##?### ## | | "##### ### ### ### ##??# ### | | ##??# ## ###???# ### | | #??# #####????## ##?## | | ##?# %## ## ?????## ##???# | | ##?## ##### #### ## #?#### ##???### | | "#??##????###??## ## ## ## !&#?????## | | ##??????????????# #?# & #??????? | | #???????????????# #??# !&##?????? | | ??????????????? ##??# #?????? | | ??????????????# ##??## #?????? | | ??????????????# ##??## #?????? | | ??????????????### ####???# ##?????? | | ????????????????####??????# #??????? | | ??????????????????????????## #??????? | | ??????????????????????????## #### !*##??????? | | ??????????????????????????# ##??###]%#???????? | | ????????????????????????### ##????##=&#???????? | | ?????????????????????####R ##?????# &#???????? | | ?????????????????????# ##??????#[ #???????? | | ?????????????????????# ##???????#%[ #???????? | | ?????????????????????# ####????????#& ##???????? | | ?????????????????????# ????????????#% ##???????? | | ?????????????????????# s????????????## #?????## | | ?????????????????????# ?????????????# ##????# | | ?????????????????????#s s????????????## #### | | ?????????????????????s ????????????# """"" ? | | ???????????????????? ???????????### ####### ?? | | ??????????????????? ??????????## ##???? ##? | | ???????????????????" t ??????????# ##### ## | | ???????????????????" " ????????### # " # | | ???????????????????"????????????# "" ## | | ????????????????????????????????# " " # ##? | | ????????????????????????????????## #" & # ##?# | | ?????????????????????????????????# ## ##?# | | ?????????????????????????????????# ### #?# | | ?????????????????????????????????# ## ##?? | | ????????????????????????????????## ## #??# | | ???????????????????????????????## ## #### | | ??????????????????????????????## ## ## | | ?????????????????????????????## ## | | ##?????????????????????####### #### | | ###????????????####???# #### | +----------------------------------------------------+ Best States ------------- Heat Dissipation 36 Coolant Potential 50 Energy Generation 20 Energy Capacity 215 Matter Stores 100 Matter Capacity 100 Sight Range 19 Terrain Scan Density 10 Armor Coverage 800 Resistance: EX 50 Resistance: I 25 Evasion (%) 50 Recoil Reduction 2 Item Schematics ----------------- None Robot Schematics ------------------ None Fabricated ------------ Nothing Alien Tech Used ----------------- None Achievements -------------- None Challenges ------------ None Polymind | -11 -10 -10 -10 ---------- Run | Yrd Mat Min Sub Hosts 2 | . . . 2 Combat Hostiles 2 | . . . 2 Allies . | . . . . Unique Host Classes 2 | . . . 2 Average Host Suspicion 17 | . . . 17 Unsuspicious Activity 277 | . . . 277 Returns to Shadow . | . . . . Fuzzy Dispatches . | . . . . Protomatter Created 58 | . . . 58 Used 56 | . . . 56 Decayed . | . . . . Highest Spend 33 | . . . 33 Top 5 Hosts by Kills: KI-L7H(R) (-10/Subcaves: 4) Y-45 Defender (-10/Subcaves: 2) Game ------ Seed LatentMakeshiftBarrier Manual? 0 Play Time 00:03:45 Cumulative 122.0 hours Start 2025.01.03 @ 19:39:33 End 2025.01.03 @ 19:43:12 Sessions 1 Manual Loads 0 Difficulty Rogue Special Mode Winter2022/Polymind Game No. 151 Rogue 151 Adventurer 0 Explorer 0 Win Type - Total 1 Types 1/0/0/0/0/0/0/0/0 Lore% 53 Gallery% 67 Achievement% 53 Wizard Run 0 Options --------- Layout 1 ASCII 0 Keyboard 0 Movement Numpad Keybinds 0 Fullscreen 1 Font 24/Smallcaps Map View 50x35 Zoom Use 0% Tactical HUD 1 Map Filters NONE Filters NONE Steam 1 RUN: 41a2caf7-e6cb-4580-b428-0972a90f95e3